[Event "Titled Tuesday Blitz January 31 Late 2023"]
[White "Golubev, Mikhail"]
[Black "Chor, Kevin"]
[WhiteFideId "14100983"]
[BlackFideId "2090740"]
[WhiteElo "2461"]
[BlackElo "1944"]
[Result "1-0"]
[Round "05"]
[TimeControl "180+2"]
[Date "2023.01.31"]
[WhiteClock "0:00:09"]
[BlackClock "0:00:12"]

1. e4 {[%clk 0:02:55]}  c5 {[%clk 0:02:59]} 2. Nf3 {[%clk 0:02:54]}  g6 {[%clk 0:03:00]} 3. d4 {[%clk 0:02:53]}  cxd4 {[%clk 0:03:01]} 4. Nxd4 {[%clk 0:02:53]}  Bg7 {[%clk 0:03:01]} 5. Nc3 {[%clk 0:02:53]}  Nc6 {[%clk 0:03:01]} 6. Be3 {[%clk 0:02:54]}  Nf6 {[%clk 0:03:01]} 7. Nxc6 {[%clk 0:02:54]}  bxc6 {[%clk 0:03:01]} 8. e5 {[%clk 0:02:54]}  Nd5 {[%clk 0:03:01]} 9. Nxd5 {[%clk 0:02:54]}  cxd5 {[%clk 0:03:02]} 10. Qxd5 {[%clk 0:02:52]}  Rb8 {[%clk 0:03:02]} 11. O-O-O {[%clk 0:02:52]}  Qc7 {[%clk 0:02:44]} 12. Bd4 {[%clk 0:01:58]}  O-O {[%clk 0:02:30]} 13. Qc5 {[%clk 0:01:24]}  Qb7 {[%clk 0:02:21]} 14. Qxe7 {[%clk 0:01:18]}  Qd5 {[%clk 0:02:08]} 15. Qd6 {[%clk 0:00:42]}  Qb7 {[%clk 0:01:21]} 16. Bc4 {[%clk 0:00:38]}  Re8 {[%clk 0:01:00]} 17. Rhe1 {[%clk 0:00:37]}  Bf8 {[%clk 0:00:59]} 18. Qd5 {[%clk 0:00:33]}  Qxd5 {[%clk 0:00:59]} 19. Bxd5 {[%clk 0:00:34]}  Rb5 {[%clk 0:00:59]} 20. Bc4 {[%clk 0:00:28]}  Rb4 {[%clk 0:00:59]} 21. b3 {[%clk 0:00:28]}  Bb7 {[%clk 0:00:51]} 22. Bc3 {[%clk 0:00:26]}  Rb6 {[%clk 0:00:50]} 23. Rxd7 {[%clk 0:00:24]}  Re7 {[%clk 0:00:44]} 24. Rxe7 {[%clk 0:00:21]}  Bxe7 {[%clk 0:00:45]} 25. e6 {[%clk 0:00:20]}  f5 {[%clk 0:00:39]} 26. f3 {[%clk 0:00:19]}  Kf8 {[%clk 0:00:38]} 27. Kb2 {[%clk 0:00:19]}  h5 {[%clk 0:00:32]} 28. Bd4 {[%clk 0:00:18]}  Rc6 {[%clk 0:00:27]} 29. Bxa7 {[%clk 0:00:13]}  Rc8 {[%clk 0:00:24]} 30. Bd4 {[%clk 0:00:12]}  h4 {[%clk 0:00:24]} 31. h3 {[%clk 0:00:09]}  Rd8 {[%clk 0:00:22]} 32. Bc3 {[%clk 0:00:08]}  Ra8 {[%clk 0:00:18]} 33. a4 {[%clk 0:00:08]}  Rc8 {[%clk 0:00:16]} 34. a5 {[%clk 0:00:08]}  Bd6 {[%clk 0:00:11]} 35. Rd1 {[%clk 0:00:08]}  Ke7 {[%clk 0:00:11]} 36. Bf6+ {[%clk 0:00:07]}  Kxf6 {[%clk 0:00:12]} 37. Rxd6 {[%clk 0:00:08]}  Ke5 {[%clk 0:00:13]} 38. Rd7 {[%clk 0:00:07]}  Bc6 {[%clk 0:00:13]} 39. Rg7 {[%clk 0:00:06]}  Kf6 {[%clk 0:00:13]} 40. Rf7+ {[%clk 0:00:06]}  Kg5 {[%clk 0:00:14]} 41. e7 {[%clk 0:00:07]}  Be8 {[%clk 0:00:12]} 42. Rf8 {[%clk 0:00:07]}  Kf4 {[%clk 0:00:13]} 43. Be6 {[%clk 0:00:06]}  Ra8 {[%clk 0:00:12]} 44. Bf7 {[%clk 0:00:06]}  Rxa5 {[%clk 0:00:12]} 45. Bxe8 {[%clk 0:00:06]}  g5 {[%clk 0:00:12]} 46. Bd7 {[%clk 0:00:04]}  Kg3 {[%clk 0:00:11]} 47. Rxf5 {[%clk 0:00:05]}  Ra8 {[%clk 0:00:10]} 48. e8=Q {[%clk 0:00:04]}  Rxe8 {[%clk 0:00:10]} 49. Bxe8 {[%clk 0:00:05]}  g4 {[%clk 0:00:10]} 50. Rg5 {[%clk 0:00:06]}  Kh2 {[%clk 0:00:10]} 51. Rxg4 {[%clk 0:00:06]}  Kh1 {[%clk 0:00:10]} 52. Rxh4 {[%clk 0:00:07]}  Kxg2 {[%clk 0:00:10]} 53. Rg4+ {[%clk 0:00:08]}  Kh1 {[%clk 0:00:11]} 54. h4 {[%clk 0:00:08]}  Kh2 {[%clk 0:00:12]} 55. h5 {[%clk 0:00:09]} 1-0


[Site "https://www.chess.com"]

[Event "Titled Tuesday Blitz January 31 Late 2023"]
[White "Koellner, Ruben Gideon"]
[Black "Grycel, Kamil"]
[WhiteFideId "12993093"]
[BlackFideId "1115499"]
[WhiteElo "2426"]
[BlackElo "2315"]
[Result "0-1"]
[Round "05"]
[TimeControl "180+2"]
[Date "2023.01.31"]
[WhiteClock "0:00:08"]
[BlackClock "0:00:30"]

1. d4 {[%clk 0:03:00]}  Nf6 {[%clk 0:02:56]} 2. Nf3 {[%clk 0:02:55]}  e6 {[%clk 0:02:52]} 3. Nbd2 {[%clk 0:02:54]}  c5 {[%clk 0:02:49]} 4. e3 {[%clk 0:02:54]}  b6 {[%clk 0:02:49]} 5. c3 {[%clk 0:02:49]}  Bb7 {[%clk 0:02:48]} 6. Bd3 {[%clk 0:02:48]}  cxd4 {[%clk 0:02:43]} 7. exd4 {[%clk 0:02:48]}  Be7 {[%clk 0:02:42]} 8. O-O {[%clk 0:02:47]}  O-O {[%clk 0:02:41]} 9. Qe2 {[%clk 0:02:46]}  Nd5 {[%clk 0:02:39]} 10. Ne4 {[%clk 0:02:41]}  f5 {[%clk 0:02:38]} 11. Ng3 {[%clk 0:02:35]}  Nc6 {[%clk 0:02:32]} 12. Re1 {[%clk 0:02:32]}  Rc8 {[%clk 0:02:27]} 13. a3 {[%clk 0:02:15]}  Qc7 {[%clk 0:01:42]} 14. c4 {[%clk 0:02:08]}  Nf4 {[%clk 0:01:41]} 15. Bxf4 {[%clk 0:02:04]}  Qxf4 {[%clk 0:01:42]} 16. d5 {[%clk 0:02:04]}  Nd8 {[%clk 0:01:32]} 17. Ne5 {[%clk 0:01:52]}  Rc7 {[%clk 0:01:22]} 18. Rad1 {[%clk 0:01:45]}  Bd6 {[%clk 0:01:07]} 19. b3 {[%clk 0:01:20]}  Bxa3 {[%clk 0:00:43]} 20. Bb1 {[%clk 0:01:16]}  Bb4 {[%clk 0:00:41]} 21. Nd3 {[%clk 0:01:11]}  Qd6 {[%clk 0:00:39]} 22. Nxb4 {[%clk 0:01:03]}  Qxb4 {[%clk 0:00:40]} 23. Qe3 {[%clk 0:00:48]}  f4 {[%clk 0:00:39]} 24. Qd3 {[%clk 0:00:37]}  g6 {[%clk 0:00:36]} 25. Ne4 {[%clk 0:00:37]}  exd5 {[%clk 0:00:34]} 26. cxd5 {[%clk 0:00:35]}  Nf7 {[%clk 0:00:33]} 27. Nf6+ {[%clk 0:00:13]}  Kg7 {[%clk 0:00:33]} 28. Ng4 {[%clk 0:00:12]}  Qc3 {[%clk 0:00:33]} 29. Qe4 {[%clk 0:00:11]}  Nd6 {[%clk 0:00:31]} 30. Qe7+ {[%clk 0:00:10]}  Nf7 {[%clk 0:00:31]} 31. d6 {[%clk 0:00:09]}  Rcc8 {[%clk 0:00:30]} 32. Qxd7 {[%clk 0:00:08]}  Qc6 {[%clk 0:00:30]} 33. Qe7 {[%clk 0:00:08]}  Qxg2# {[%clk 0:00:30]} 0-1


[Site "https://www.chess.com"]

[Event "Titled Tuesday Blitz January 31 Late 2023"]
[White "Mladek, Richard"]
[Black "Kovacs, Klara"]
[WhiteFideId "386588"]
[BlackFideId "733210"]
[WhiteElo "2436"]
[BlackElo "2121"]
[Result "0-1"]
[Round "05"]
[TimeControl "180+2"]
[Date "2023.01.31"]
[WhiteClock "0:00:05"]
[BlackClock "0:00:27"]

1. c4 {[%clk 0:03:00]}  Nf6 {[%clk 0:02:35]} 2. Nf3 {[%clk 0:02:50]}  Nc6 {[%clk 0:02:33]} 3. d4 {[%clk 0:02:48]}  e6 {[%clk 0:02:31]} 4. Nc3 {[%clk 0:02:44]}  d5 {[%clk 0:02:28]} 5. cxd5 {[%clk 0:02:41]}  exd5 {[%clk 0:02:25]} 6. Qb3 {[%clk 0:02:41]}  Be7 {[%clk 0:02:20]} 7. Bg5 {[%clk 0:02:41]}  O-O {[%clk 0:02:13]} 8. e3 {[%clk 0:02:40]}  Be6 {[%clk 0:02:11]} 9. Rc1 {[%clk 0:02:29]}  Rb8 {[%clk 0:02:08]} 10. Bd3 {[%clk 0:02:28]}  h6 {[%clk 0:02:07]} 11. Bh4 {[%clk 0:02:25]}  Na5 {[%clk 0:02:05]} 12. Qc2 {[%clk 0:02:25]}  Nc4 {[%clk 0:02:05]} 13. O-O {[%clk 0:02:21]}  c6 {[%clk 0:02:05]} 14. e4 {[%clk 0:02:10]}  dxe4 {[%clk 0:01:59]} 15. Nxe4 {[%clk 0:02:10]}  Nxe4 {[%clk 0:01:58]} 16. Bxe7 {[%clk 0:02:09]}  Qxe7 {[%clk 0:01:59]} 17. Bxe4 {[%clk 0:02:04]}  Rfd8 {[%clk 0:01:55]} 18. Rfe1 {[%clk 0:02:01]}  Qf6 {[%clk 0:01:49]} 19. Bd3 {[%clk 0:01:53]}  Nb6 {[%clk 0:01:48]} 20. a4 {[%clk 0:01:51]}  Nd5 {[%clk 0:01:47]} 21. Be4 {[%clk 0:01:43]}  Nf4 {[%clk 0:01:43]} 22. Qd2 {[%clk 0:01:34]}  Bd5 {[%clk 0:01:43]} 23. Bxd5 {[%clk 0:01:19]}  Rxd5 {[%clk 0:01:44]} 24. Re4 {[%clk 0:01:19]}  Nh3+ {[%clk 0:01:33]} 25. Kh1 {[%clk 0:01:14]}  Rbd8 {[%clk 0:01:33]} 26. Rce1 {[%clk 0:01:13]}  Ng5 {[%clk 0:01:30]} 27. Nxg5 {[%clk 0:00:59]}  hxg5 {[%clk 0:01:18]} 28. Re8+ {[%clk 0:00:53]}  Rxe8 {[%clk 0:01:18]} 29. Rxe8+ {[%clk 0:00:54]}  Kh7 {[%clk 0:01:18]} 30. Qd3+ {[%clk 0:00:54]}  Qf5 {[%clk 0:01:08]} 31. Qxf5+ {[%clk 0:00:29]}  Rxf5 {[%clk 0:01:09]} 32. Kg1 {[%clk 0:00:30]}  Rd5 {[%clk 0:01:07]} 33. g3 {[%clk 0:00:12]}  Rxd4 {[%clk 0:01:05]} 34. Re7 {[%clk 0:00:13]}  Rxa4 {[%clk 0:00:58]} 35. Rxb7 {[%clk 0:00:12]}  Kg6 {[%clk 0:00:57]} 36. Rc7 {[%clk 0:00:12]}  Ra6 {[%clk 0:00:56]} 37. Kf1 {[%clk 0:00:12]}  f6 {[%clk 0:00:56]} 38. Ke2 {[%clk 0:00:12]}  Rb6 {[%clk 0:00:56]} 39. Ke3 {[%clk 0:00:11]}  Rxb2 {[%clk 0:00:55]} 40. Rxa7 {[%clk 0:00:10]}  c5 {[%clk 0:00:54]} 41. Rc7 {[%clk 0:00:10]}  Rc2 {[%clk 0:00:54]} 42. h3 {[%clk 0:00:10]}  f5 {[%clk 0:00:48]} 43. Rc6+ {[%clk 0:00:09]}  Kh5 {[%clk 0:00:45]} 44. f3 {[%clk 0:00:10]}  Rc3+ {[%clk 0:00:39]} 45. Ke2 {[%clk 0:00:10]}  f4 {[%clk 0:00:30]} 46. g4+ {[%clk 0:00:07]}  Kh4 {[%clk 0:00:31]} 47. Rg6 {[%clk 0:00:07]}  c4 {[%clk 0:00:28]} 48. Rxg7 {[%clk 0:00:06]}  Rc2+ {[%clk 0:00:28]} 49. Ke1 {[%clk 0:00:05]}  Ra2 {[%clk 0:00:28]} 50. Rc7 {[%clk 0:00:03]}  Ra4 {[%clk 0:00:26]} 51. Kf2 {[%clk 0:00:03]}  Ra2+ {[%clk 0:00:24]} 52. Ke1 {[%clk 0:00:04]}  Rc2 {[%clk 0:00:25]} 53. Kd1 {[%clk 0:00:04]}  Rc3 {[%clk 0:00:25]} 54. Kd2 {[%clk 0:00:05]}  Rxf3 {[%clk 0:00:25]} 55. Rxc4 {[%clk 0:00:04]}  Rxh3 {[%clk 0:00:25]} 56. Ke2 {[%clk 0:00:04]}  Kxg4 {[%clk 0:00:26]} 57. Kf2 {[%clk 0:00:05]}  Rh2+ {[%clk 0:00:26]} 58. Kg1 {[%clk 0:00:05]}  Ra2 {[%clk 0:00:27]} 59. Rc5 {[%clk 0:00:04]}  f3 {[%clk 0:00:27]} 60. Rc4+ {[%clk 0:00:04]}  Kg3 {[%clk 0:00:27]} 61. Rc1 {[%clk 0:00:05]}  g4 {[%clk 0:00:27]} 62. Kh1 {[%clk 0:00:04]}  Rh2+ {[%clk 0:00:26]} 63. Kg1 {[%clk 0:00:05]}  f2+ {[%clk 0:00:27]} 0-1


[Site "https://www.chess.com"]

[Event "Titled Tuesday Blitz January 31 Late 2023"]
[White "Djokic, Mihailo"]
[Black "Bas Mas, Jose Joaquin"]
[WhiteFideId "976440"]
[BlackFideId "22219064"]
[WhiteElo "2192"]
[BlackElo "2197"]
[Result "0-1"]
[Round "05"]
[TimeControl "180+2"]
[Date "2023.01.31"]
[WhiteClock "0:00:02"]
[BlackClock "0:00:12"]

1. e4 {[%clk 0:03:00]}  Nf6 {[%clk 0:02:59]} 2. e5 {[%clk 0:02:59]}  Nd5 {[%clk 0:03:00]} 3. c4 {[%clk 0:02:59]}  Nb6 {[%clk 0:03:00]} 4. d4 {[%clk 0:03:00]}  d6 {[%clk 0:03:00]} 5. exd6 {[%clk 0:03:01]}  cxd6 {[%clk 0:03:01]} 6. Nc3 {[%clk 0:03:01]}  g6 {[%clk 0:03:01]} 7. Be3 {[%clk 0:03:01]}  Bg7 {[%clk 0:03:01]} 8. Rc1 {[%clk 0:03:02]}  O-O {[%clk 0:03:01]} 9. b3 {[%clk 0:03:02]}  Bf5 {[%clk 0:03:01]} 10. Be2 {[%clk 0:03:01]}  d5 {[%clk 0:02:50]} 11. c5 {[%clk 0:03:01]}  Nc8 {[%clk 0:02:50]} 12. h4 {[%clk 0:02:55]}  Nc6 {[%clk 0:02:48]} 13. g4 {[%clk 0:02:54]}  Be6 {[%clk 0:02:47]} 14. h5 {[%clk 0:02:53]}  f5 {[%clk 0:02:41]} 15. hxg6 {[%clk 0:02:52]}  hxg6 {[%clk 0:02:41]} 16. gxf5 {[%clk 0:02:48]}  Bxf5 {[%clk 0:02:41]} 17. Bf3 {[%clk 0:02:47]}  e6 {[%clk 0:02:34]} 18. Nge2 {[%clk 0:02:44]}  Qf6 {[%clk 0:02:27]} 19. Ng3 {[%clk 0:02:35]}  N8e7 {[%clk 0:02:16]} 20. Nce2 {[%clk 0:02:23]}  e5 {[%clk 0:02:15]} 21. dxe5 {[%clk 0:02:22]}  Nxe5 {[%clk 0:02:15]} 22. Bxd5+ {[%clk 0:02:15]}  Nxd5 {[%clk 0:02:14]} 23. Qxd5+ {[%clk 0:02:16]}  Be6 {[%clk 0:02:14]} 24. Qe4 {[%clk 0:02:13]}  Rad8 {[%clk 0:02:06]} 25. Nf4 {[%clk 0:02:09]}  Bg4 {[%clk 0:01:53]} 26. O-O {[%clk 0:02:00]}  Qh4 {[%clk 0:01:18]} 27. Nxg6 {[%clk 0:01:43]}  Nxg6 {[%clk 0:00:52]} 28. Qxg6 {[%clk 0:01:42]}  Rf3 {[%clk 0:00:44]} 29. Nh1 {[%clk 0:00:33]}  Rh3 {[%clk 0:00:43]} 30. Qe4 {[%clk 0:00:24]}  Qh5 {[%clk 0:00:35]} 31. Ng3 {[%clk 0:00:20]}  Qh4 {[%clk 0:00:22]} 32. Rfe1 {[%clk 0:00:08]}  Rf8 {[%clk 0:00:19]} 33. Rc4 {[%clk 0:00:07]}  Rxg3+ {[%clk 0:00:18]} 34. fxg3 {[%clk 0:00:01]}  Qxg3+ {[%clk 0:00:19]} 35. Qg2 {[%clk 0:00:01]}  Qxe1+ {[%clk 0:00:19]} 36. Kh2 {[%clk 0:00:01]}  Be5+ {[%clk 0:00:17]} 37. Bf4 {[%clk 0:00:01]}  Rxf4 {[%clk 0:00:14]} 38. Qd5+ {[%clk 0:00:01]}  Rf7+ {[%clk 0:00:13]} 39. Kg2 {[%clk 0:00:02]}  Qf1# {[%clk 0:00:12]} 0-1


[Site "https://www.chess.com"]

[Event "Titled Tuesday Blitz January 31 Late 2023"]
[White "Kourkoulos-Arditis, Stamatis"]
[Black "QuiesPrecatio"]
[WhiteFideId "4221990"]
[WhiteElo "2539"]
[BlackElo "2426"]
[Result "1-0"]
[Round "05"]
[TimeControl "180+2"]
[Date "2023.01.31"]
[WhiteClock "0:00:35"]
[BlackClock "0:00:09"]

1. e4 {[%clk 0:02:54]}  c6 {[%clk 0:02:58]} 2. d4 {[%clk 0:02:51]}  d5 {[%clk 0:02:58]} 3. exd5 {[%clk 0:02:52]}  cxd5 {[%clk 0:02:59]} 4. c4 {[%clk 0:02:52]}  Nf6 {[%clk 0:02:59]} 5. Nf3 {[%clk 0:02:53]}  Nc6 {[%clk 0:02:59]} 6. Nc3 {[%clk 0:02:53]}  g6 {[%clk 0:02:58]} 7. cxd5 {[%clk 0:02:45]}  Nxd5 {[%clk 0:02:58]} 8. Bc4 {[%clk 0:02:46]}  Nxc3 {[%clk 0:02:59]} 9. bxc3 {[%clk 0:02:46]}  Bg7 {[%clk 0:02:55]} 10. O-O {[%clk 0:02:41]}  O-O {[%clk 0:02:54]} 11. Re1 {[%clk 0:02:42]}  Na5 {[%clk 0:02:42]} 12. Bf1 {[%clk 0:02:41]}  a6 {[%clk 0:02:37]} 13. Bg5 {[%clk 0:02:34]}  Re8 {[%clk 0:02:36]} 14. a4 {[%clk 0:02:22]}  Be6 {[%clk 0:02:32]} 15. Qd2 {[%clk 0:02:18]}  Nb3 {[%clk 0:02:30]} 16. Qf4 {[%clk 0:02:16]}  Nxa1 {[%clk 0:02:29]} 17. Rxa1 {[%clk 0:02:16]}  Qd5 {[%clk 0:02:25]} 18. Qh4 {[%clk 0:02:11]}  Rac8 {[%clk 0:02:01]} 19. c4 {[%clk 0:02:03]}  Qf5 {[%clk 0:01:57]} 20. Rc1 {[%clk 0:01:56]}  Qg4 {[%clk 0:01:51]} 21. Bxe7 {[%clk 0:01:48]}  Qxh4 {[%clk 0:01:50]} 22. Bxh4 {[%clk 0:01:49]}  Bg4 {[%clk 0:01:51]} 23. d5 {[%clk 0:01:44]}  Bxf3 {[%clk 0:01:42]} 24. gxf3 {[%clk 0:01:45]}  Bf8 {[%clk 0:01:43]} 25. Rb1 {[%clk 0:01:41]}  Rc7 {[%clk 0:01:27]} 26. Bg3 {[%clk 0:01:38]}  Rd7 {[%clk 0:01:28]} 27. a5 {[%clk 0:01:33]}  Bg7 {[%clk 0:01:14]} 28. Bd3 {[%clk 0:01:00]}  Bc3 {[%clk 0:01:10]} 29. Bc2 {[%clk 0:01:00]}  Re1+ {[%clk 0:00:55]} 30. Rxe1 {[%clk 0:01:00]}  Bxe1 {[%clk 0:00:56]} 31. Ba4 {[%clk 0:01:00]}  Re7 {[%clk 0:00:31]} 32. d6 {[%clk 0:00:59]}  Re6 {[%clk 0:00:32]} 33. Bd7 {[%clk 0:00:43]}  Bxa5 {[%clk 0:00:17]} 34. Bxe6 {[%clk 0:00:42]}  fxe6 {[%clk 0:00:18]} 35. Bh4 {[%clk 0:00:42]}  h6 {[%clk 0:00:13]} 36. f4 {[%clk 0:00:42]}  g5 {[%clk 0:00:10]} 37. fxg5 {[%clk 0:00:42]}  Bd8 {[%clk 0:00:11]} 38. f4 {[%clk 0:00:36]}  Kf7 {[%clk 0:00:09]} 39. g6+ {[%clk 0:00:35]} 1-0


[Site "https://www.chess.com"]

[Event "Titled Tuesday Blitz January 31 Late 2023"]
[White "Backsten, Jan"]
[Black "Liu, Eric"]
[WhiteFideId "1735381"]
[BlackFideId "30960240"]
[WhiteElo "2029"]
[BlackElo "2299"]
[Result "0-1"]
[Round "05"]
[TimeControl "180+2"]
[Date "2023.01.31"]
[WhiteClock "0:00:01"]
[BlackClock "0:00:10"]

1. e4 {[%clk 0:02:58]}  d6 {[%clk 0:02:58]} 2. d4 {[%clk 0:02:57]}  g6 {[%clk 0:02:58]} 3. Nc3 {[%clk 0:02:57]}  Bg7 {[%clk 0:02:59]} 4. Be3 {[%clk 0:02:57]}  Nf6 {[%clk 0:02:57]} 5. Qd2 {[%clk 0:02:56]}  a6 {[%clk 0:02:55]} 6. O-O-O {[%clk 0:02:55]}  b5 {[%clk 0:02:55]} 7. f3 {[%clk 0:02:56]}  c6 {[%clk 0:02:45]} 8. h4 {[%clk 0:02:55]}  h5 {[%clk 0:02:44]} 9. Kb1 {[%clk 0:02:47]}  Nbd7 {[%clk 0:02:44]} 10. Nh3 {[%clk 0:02:42]}  Nb6 {[%clk 0:02:42]} 11. Bd3 {[%clk 0:02:43]}  Nc4 {[%clk 0:02:31]} 12. Bxc4 {[%clk 0:02:42]}  bxc4 {[%clk 0:02:32]} 13. Ng5 {[%clk 0:02:40]}  Rb8 {[%clk 0:02:31]} 14. Qe2 {[%clk 0:01:59]}  Qb6 {[%clk 0:02:26]} 15. Bc1 {[%clk 0:01:58]}  Qb4 {[%clk 0:02:17]} 16. Ka1 {[%clk 0:01:53]}  d5 {[%clk 0:02:08]} 17. e5 {[%clk 0:01:44]}  Nh7 {[%clk 0:01:38]} 18. Nxh7 {[%clk 0:00:59]}  Rxh7 {[%clk 0:01:39]} 19. a3 {[%clk 0:00:58]}  Qb6 {[%clk 0:01:36]} 20. Na4 {[%clk 0:00:57]}  Qa5 {[%clk 0:01:33]} 21. Nc5 {[%clk 0:00:39]}  c3 {[%clk 0:01:34]} 22. b3 {[%clk 0:00:40]}  Bh6 {[%clk 0:01:29]} 23. Ka2 {[%clk 0:00:36]}  Bf8 {[%clk 0:01:13]} 24. e6 {[%clk 0:00:28]}  Qb6 {[%clk 0:00:51]} 25. Bf4 {[%clk 0:00:24]}  Ra8 {[%clk 0:00:51]} 26. exf7+ {[%clk 0:00:22]}  Rxf7 {[%clk 0:00:51]} 27. Bg5 {[%clk 0:00:20]}  a5 {[%clk 0:00:50]} 28. Rhe1 {[%clk 0:00:19]}  Ra7 {[%clk 0:00:50]} 29. a4 {[%clk 0:00:18]}  Qb8 {[%clk 0:00:43]} 30. Qd3 {[%clk 0:00:16]}  Bf5 {[%clk 0:00:39]} 31. Qxc3 {[%clk 0:00:16]}  Bg7 {[%clk 0:00:33]} 32. Ne6 {[%clk 0:00:15]}  Qb6 {[%clk 0:00:25]} 33. Nxg7+ {[%clk 0:00:13]}  Rxg7 {[%clk 0:00:25]} 34. Re5 {[%clk 0:00:12]}  e6 {[%clk 0:00:24]} 35. Rde1 {[%clk 0:00:12]}  Rab7 {[%clk 0:00:24]} 36. Bf6 {[%clk 0:00:11]}  Rgf7 {[%clk 0:00:24]} 37. Bg5 {[%clk 0:00:12]}  Rfc7 {[%clk 0:00:23]} 38. Bd2 {[%clk 0:00:12]}  c5 {[%clk 0:00:23]} 39. Qxa5 {[%clk 0:00:11]}  Qxa5 {[%clk 0:00:17]} 40. Bxa5 {[%clk 0:00:12]}  Rc6 {[%clk 0:00:18]} 41. dxc5 {[%clk 0:00:07]}  Bxc2 {[%clk 0:00:18]} 42. b4 {[%clk 0:00:07]}  Kd7 {[%clk 0:00:15]} 43. Bb6 {[%clk 0:00:07]}  Bxa4 {[%clk 0:00:15]} 44. R1e2 {[%clk 0:00:03]}  Bb5 {[%clk 0:00:15]} 45. Rd2 {[%clk 0:00:04]}  Bc4+ {[%clk 0:00:16]} 46. Kb2 {[%clk 0:00:04]}  Rb8 {[%clk 0:00:16]} 47. Kc3 {[%clk 0:00:05]}  Ra8 {[%clk 0:00:16]} 48. Rb2 {[%clk 0:00:04]}  Ra3+ {[%clk 0:00:16]} 49. Kd2 {[%clk 0:00:04]}  Rd3+ {[%clk 0:00:17]} 50. Ke1 {[%clk 0:00:05]}  Rc8 {[%clk 0:00:14]} 51. Rd2 {[%clk 0:00:05]}  Rb3 {[%clk 0:00:13]} 52. Ba5 {[%clk 0:00:05]}  Rf8 {[%clk 0:00:11]} 53. Rg5 {[%clk 0:00:05]}  Rf6 {[%clk 0:00:11]} 54. Kf2 {[%clk 0:00:05]}  Kc6 {[%clk 0:00:11]} 55. Bd8 {[%clk 0:00:05]}  Rf8 {[%clk 0:00:11]} 56. Ba5 {[%clk 0:00:05]}  Rg8 {[%clk 0:00:10]} 57. Rc2 {[%clk 0:00:05]}  Bd3 {[%clk 0:00:10]} 58. Rd2 {[%clk 0:00:05]}  Bc4 {[%clk 0:00:11]} 59. g4 {[%clk 0:00:05]}  hxg4 {[%clk 0:00:11]} 60. Rxg4 {[%clk 0:00:06]}  Rf8 {[%clk 0:00:10]} 61. Rxg6 {[%clk 0:00:06]}  Rbxf3+ {[%clk 0:00:09]} 62. Kg2 {[%clk 0:00:07]}  Bf1+ {[%clk 0:00:10]} 63. Kg1 {[%clk 0:00:07]}  Bh3 {[%clk 0:00:09]} 64. Kh2 {[%clk 0:00:01]}  Bf5 {[%clk 0:00:10]} 0-1


[Site "https://www.chess.com"]

[Event "Titled Tuesday Blitz January 31 Late 2023"]
[White "Aldokhin, Ivan"]
[Black "Nikologorsky, Matfei"]
[WhiteFideId "24115720"]
[BlackFideId "24102474"]
[WhiteElo "2413"]
[BlackElo "2182"]
[Result "1-0"]
[Round "05"]
[TimeControl "180+2"]
[Date "2023.01.31"]
[WhiteClock "0:00:04"]
[BlackClock "0:00:05"]

1. e4 {[%clk 0:02:55]}  c5 {[%clk 0:02:59]} 2. Nf3 {[%clk 0:02:55]}  e6 {[%clk 0:02:59]} 3. d4 {[%clk 0:02:56]}  cxd4 {[%clk 0:02:59]} 4. Nxd4 {[%clk 0:02:57]}  a6 {[%clk 0:03:00]} 5. Nc3 {[%clk 0:02:57]}  Qc7 {[%clk 0:03:00]} 6. Bd3 {[%clk 0:02:58]}  Nc6 {[%clk 0:02:59]} 7. Nxc6 {[%clk 0:02:58]}  dxc6 {[%clk 0:03:00]} 8. Qe2 {[%clk 0:02:58]}  e5 {[%clk 0:02:59]} 9. a4 {[%clk 0:02:55]}  Nf6 {[%clk 0:02:57]} 10. O-O {[%clk 0:02:55]}  Bc5 {[%clk 0:02:56]} 11. a5 {[%clk 0:02:48]}  O-O {[%clk 0:02:54]} 12. Na4 {[%clk 0:02:39]}  Qxa5 {[%clk 0:02:28]} 13. Bd2 {[%clk 0:01:45]}  Bb4 {[%clk 0:02:27]} 14. c3 {[%clk 0:01:41]}  Be7 {[%clk 0:02:23]} 15. Be3 {[%clk 0:01:38]}  Qc7 {[%clk 0:02:09]} 16. Bb6 {[%clk 0:01:32]}  Qb8 {[%clk 0:01:58]} 17. Rad1 {[%clk 0:01:16]}  Be6 {[%clk 0:01:56]} 18. Nc5 {[%clk 0:01:09]}  Bxc5 {[%clk 0:01:36]} 19. Bxc5 {[%clk 0:01:08]}  Re8 {[%clk 0:01:37]} 20. Bc4 {[%clk 0:00:53]}  Qc8 {[%clk 0:01:27]} 21. Rd6 {[%clk 0:00:46]}  Bxc4 {[%clk 0:01:24]} 22. Qxc4 {[%clk 0:00:46]}  Rd8 {[%clk 0:01:07]} 23. Rfd1 {[%clk 0:00:45]}  Rxd6 {[%clk 0:01:07]} 24. Rxd6 {[%clk 0:00:37]}  Qg4 {[%clk 0:01:03]} 25. f3 {[%clk 0:00:35]}  Qg5 {[%clk 0:01:02]} 26. Qb3 {[%clk 0:00:27]}  b5 {[%clk 0:00:52]} 27. c4 {[%clk 0:00:20]}  h5 {[%clk 0:00:48]} 28. Be3 {[%clk 0:00:18]}  bxc4 {[%clk 0:00:43]} 29. Qc3 {[%clk 0:00:17]}  Qh4 {[%clk 0:00:41]} 30. Bf2 {[%clk 0:00:10]}  Qg5 {[%clk 0:00:38]} 31. Be3 {[%clk 0:00:09]}  Qh4 {[%clk 0:00:37]} 32. h3 {[%clk 0:00:09]}  Qg3 {[%clk 0:00:33]} 33. Bf2 {[%clk 0:00:09]}  Qg5 {[%clk 0:00:33]} 34. Be3 {[%clk 0:00:07]}  Qg3 {[%clk 0:00:32]} 35. Qd2 {[%clk 0:00:04]}  Kh7 {[%clk 0:00:31]} 36. Rxc6 {[%clk 0:00:04]}  Rb8 {[%clk 0:00:28]} 37. Rxc4 {[%clk 0:00:04]}  h4 {[%clk 0:00:26]} 38. Rc2 {[%clk 0:00:05]}  Nh5 {[%clk 0:00:25]} 39. Qf2 {[%clk 0:00:05]}  Qxf2+ {[%clk 0:00:24]} 40. Kxf2 {[%clk 0:00:05]}  Rb3 {[%clk 0:00:22]} 41. Bc1 {[%clk 0:00:04]}  f6 {[%clk 0:00:21]} 42. Rc6 {[%clk 0:00:04]}  a5 {[%clk 0:00:21]} 43. Rc3 {[%clk 0:00:03]}  Rb5 {[%clk 0:00:20]} 44. Ra3 {[%clk 0:00:03]}  g5 {[%clk 0:00:20]} 45. Ra2 {[%clk 0:00:03]}  Nf4 {[%clk 0:00:18]} 46. Bxf4 {[%clk 0:00:02]}  gxf4 {[%clk 0:00:18]} 47. Ke2 {[%clk 0:00:03]}  Kg6 {[%clk 0:00:17]} 48. Kd3 {[%clk 0:00:03]}  Rb3+ {[%clk 0:00:16]} 49. Kc4 {[%clk 0:00:03]}  Re3 {[%clk 0:00:16]} 50. Rxa5 {[%clk 0:00:03]}  Re2 {[%clk 0:00:17]} 51. b4 {[%clk 0:00:04]}  Rxg2 {[%clk 0:00:17]} 52. b5 {[%clk 0:00:04]}  Rc2+ {[%clk 0:00:16]} 53. Kd5 {[%clk 0:00:04]}  Rd2+ {[%clk 0:00:15]} 54. Kc6 {[%clk 0:00:04]}  Rh2 {[%clk 0:00:15]} 55. b6 {[%clk 0:00:04]}  Rxh3 {[%clk 0:00:16]} 56. b7 {[%clk 0:00:05]}  Rxf3 {[%clk 0:00:15]} 57. b8=Q {[%clk 0:00:05]}  Rc3+ {[%clk 0:00:16]} 58. Kd5 {[%clk 0:00:05]}  Rd3+ {[%clk 0:00:15]} 59. Ke6 {[%clk 0:00:05]}  h3 {[%clk 0:00:12]} 60. Qg8+ {[%clk 0:00:05]}  Kh5 {[%clk 0:00:12]} 61. Qh7+ {[%clk 0:00:05]}  Kg4 {[%clk 0:00:12]} 62. Qf5+ {[%clk 0:00:05]}  Kg3 {[%clk 0:00:12]} 63. Ra8 {[%clk 0:00:05]}  Kh2 {[%clk 0:00:11]} 64. Rg8 {[%clk 0:00:05]}  Rg3 {[%clk 0:00:12]} 65. Rh8 {[%clk 0:00:04]}  Kg2 {[%clk 0:00:11]} 66. Qxf6 {[%clk 0:00:04]}  f3 {[%clk 0:00:11]} 67. Qxe5 {[%clk 0:00:04]}  f2 {[%clk 0:00:12]} 68. Rf8 {[%clk 0:00:03]}  h2 {[%clk 0:00:11]} 69. Qf4 {[%clk 0:00:04]}  Rg6+ {[%clk 0:00:08]} 70. Ke7 {[%clk 0:00:03]}  Kh3 {[%clk 0:00:07]} 71. Qf3+ {[%clk 0:00:03]}  Kh4 {[%clk 0:00:06]} 72. Rh8+ {[%clk 0:00:04]}  Kg5 {[%clk 0:00:05]} 73. Rh5# {[%clk 0:00:04]} 1-0


[Site "https://www.chess.com"]